[Event "Titled Tuesday Blitz November 01 Early 2022"]
[White "Rose, Felix"]
[Black "Buscar, Michael"]
[WhiteFideId "5105722"]
[BlackFideId "2603616"]
[WhiteElo "2039"]
[BlackElo "2010"]
[Result "0-1"]
[Round "05"]
[TimeControl "180+1"]
[Date "2022.11.02"]
[WhiteClock "0:00:27"]
[BlackClock "0:02:16"]

1. e4 {[%clk 0:02:59]}  c5 {[%clk 0:02:55]} 2. Nf3 {[%clk 0:02:58]}  Nc6 {[%clk 0:02:55]} 3. d4 {[%clk 0:02:55]}  cxd4 {[%clk 0:02:56]} 4. Nxd4 {[%clk 0:02:55]}  Nf6 {[%clk 0:02:57]} 5. Nc3 {[%clk 0:02:55]}  e5 {[%clk 0:02:58]} 6. Ndb5 {[%clk 0:02:55]}  h6 {[%clk 0:02:57]} 7. Nd6+ {[%clk 0:02:53]}  Bxd6 {[%clk 0:02:57]} 8. Qxd6 {[%clk 0:02:54]}  Qe7 {[%clk 0:02:58]} 9. Qxe7+ {[%clk 0:02:51]}  Kxe7 {[%clk 0:02:58]} 10. Be3 {[%clk 0:02:50]}  Rd8 {[%clk 0:02:57]} 11. O-O-O {[%clk 0:02:48]}  d6 {[%clk 0:02:57]} 12. f3 {[%clk 0:02:47]}  Bd7 {[%clk 0:02:55]} 13. Be2 {[%clk 0:02:45]}  Be6 {[%clk 0:02:53]} 14. Nd5+ {[%clk 0:02:38]}  Bxd5 {[%clk 0:02:53]} 15. exd5 {[%clk 0:02:38]}  Nb4 {[%clk 0:02:47]} 16. Bc4 {[%clk 0:02:36]}  Rdc8 {[%clk 0:02:47]} 17. Bb3 {[%clk 0:02:35]}  a5 {[%clk 0:02:45]} 18. a3 {[%clk 0:01:45]}  a4 {[%clk 0:02:39]} 19. Bxa4 {[%clk 0:01:20]}  Nbxd5 {[%clk 0:02:29]} 20. Bb3 {[%clk 0:00:37]}  Nxe3 {[%clk 0:02:24]} 21. Rd3 {[%clk 0:00:38]}  Nxg2 {[%clk 0:02:18]} 22. Rhd1 {[%clk 0:00:27]}  Ra6 {[%clk 0:02:16]} 0-1


[Site "https://www.chess.com"]

[Event "Titled Tuesday Blitz November 01 Early 2022"]
[White "Safin, Robert"]
[Black "Bashirli, Saadat"]
[WhiteFideId "34189120"]
[BlackFideId "13429990"]
[WhiteElo "2219"]
[BlackElo "1408"]
[Result "1-0"]
[Round "05"]
[TimeControl "180+1"]
[Date "2022.11.02"]
[WhiteClock "0:01:59"]
[BlackClock "0:01:32"]

1. e4 {[%clk 0:02:57]}  c5 {[%clk 0:02:59]} 2. c3 {[%clk 0:02:57]}  Nf6 {[%clk 0:02:58]} 3. e5 {[%clk 0:02:57]}  Nd5 {[%clk 0:02:57]} 4. Nf3 {[%clk 0:02:58]}  Nc6 {[%clk 0:02:55]} 5. d4 {[%clk 0:02:57]}  cxd4 {[%clk 0:02:56]} 6. Bc4 {[%clk 0:02:57]}  Nb6 {[%clk 0:02:55]} 7. Bb3 {[%clk 0:02:57]}  d6 {[%clk 0:02:50]} 8. exd6 {[%clk 0:02:56]}  Qxd6 {[%clk 0:02:51]} 9. O-O {[%clk 0:02:56]}  dxc3 {[%clk 0:02:39]} 10. Nxc3 {[%clk 0:02:49]}  Qxd1 {[%clk 0:02:35]} 11. Rxd1 {[%clk 0:02:48]}  Bd7 {[%clk 0:02:31]} 12. Be3 {[%clk 0:02:35]}  e6 {[%clk 0:02:28]} 13. Nb5 {[%clk 0:02:30]}  O-O-O {[%clk 0:02:25]} 14. Nxa7+ {[%clk 0:02:26]}  Nxa7 {[%clk 0:01:59]} 15. Bxb6 {[%clk 0:02:24]}  Nc6 {[%clk 0:01:57]} 16. Bxd8 {[%clk 0:02:23]}  Kxd8 {[%clk 0:01:58]} 17. Ng5 {[%clk 0:02:22]}  Ke8 {[%clk 0:01:58]} 18. Nxf7 {[%clk 0:02:21]}  Kxf7 {[%clk 0:01:56]} 19. Rxd7+ {[%clk 0:02:21]}  Be7 {[%clk 0:01:57]} 20. Re1 {[%clk 0:02:18]}  Nb8 {[%clk 0:01:48]} 21. Rxb7 {[%clk 0:02:15]}  Rd8 {[%clk 0:01:47]} 22. Rxe6 {[%clk 0:02:13]}  Rd2 {[%clk 0:01:35]} 23. Rbxe7+ {[%clk 0:02:01]}  Kf8 {[%clk 0:01:32]} 24. Re8+ {[%clk 0:02:01]}  Kf7 {[%clk 0:01:32]} 25. Re2+ {[%clk 0:01:59]} 1-0


[Site "https://www.chess.com"]

[Event "Titled Tuesday Blitz November 01 Early 2022"]
[White "Sailer, Mike"]
[Black "Sernecki, Franciszek"]
[WhiteFideId "2012901"]
[BlackFideId "1169297"]
[WhiteElo "2109"]
[BlackElo "2209"]
[Result "0-1"]
[Round "05"]
[TimeControl "180+1"]
[Date "2022.11.02"]
[WhiteClock "0:00:02"]
[BlackClock "0:01:42"]

1. Nf3 {[%clk 0:03:00]}  c5 {[%clk 0:02:57]} 2. c4 {[%clk 0:02:58]}  Nc6 {[%clk 0:02:48]} 3. g3 {[%clk 0:02:53]}  g6 {[%clk 0:02:47]} 4. Bg2 {[%clk 0:02:52]}  Bg7 {[%clk 0:02:48]} 5. O-O {[%clk 0:02:46]}  e5 {[%clk 0:02:40]} 6. d3 {[%clk 0:02:45]}  Nge7 {[%clk 0:02:39]} 7. Nc3 {[%clk 0:02:43]}  d6 {[%clk 0:02:38]} 8. a3 {[%clk 0:02:42]}  O-O {[%clk 0:02:35]} 9. Rb1 {[%clk 0:02:42]}  a5 {[%clk 0:02:35]} 10. Ne1 {[%clk 0:02:39]}  Be6 {[%clk 0:02:35]} 11. e4 {[%clk 0:02:26]}  f5 {[%clk 0:02:26]} 12. exf5 {[%clk 0:02:13]}  Nxf5 {[%clk 0:02:21]} 13. Nc2 {[%clk 0:02:13]}  h6 {[%clk 0:02:17]} 14. Nd5 {[%clk 0:02:13]}  Kh7 {[%clk 0:02:16]} 15. b4 {[%clk 0:02:11]}  axb4 {[%clk 0:02:17]} 16. axb4 {[%clk 0:02:11]}  b6 {[%clk 0:02:17]} 17. bxc5 {[%clk 0:02:03]}  bxc5 {[%clk 0:02:18]} 18. Nb6 {[%clk 0:01:31]}  Rb8 {[%clk 0:02:14]} 19. Bxc6 {[%clk 0:01:30]}  Rxb6 {[%clk 0:02:14]} 20. Rxb6 {[%clk 0:01:30]}  Qxb6 {[%clk 0:02:15]} 21. Bg2 {[%clk 0:01:26]}  Nd4 {[%clk 0:02:13]} 22. Nxd4 {[%clk 0:01:24]}  exd4 {[%clk 0:02:14]} 23. Bf4 {[%clk 0:01:15]}  Be5 {[%clk 0:02:07]} 24. Bxe5 {[%clk 0:01:13]}  dxe5 {[%clk 0:02:08]} 25. Be4 {[%clk 0:01:12]}  Bf5 {[%clk 0:02:07]} 26. Bxf5 {[%clk 0:01:09]}  gxf5 {[%clk 0:02:05]} 27. Re1 {[%clk 0:01:05]}  Re8 {[%clk 0:02:03]} 28. Qh5 {[%clk 0:01:04]}  Qg6 {[%clk 0:02:01]} 29. Qf3 {[%clk 0:01:03]}  e4 {[%clk 0:01:59]} 30. Qf4 {[%clk 0:00:59]}  Re7 {[%clk 0:01:50]} 31. dxe4 {[%clk 0:00:46]}  fxe4 {[%clk 0:01:51]} 32. Ra1 {[%clk 0:00:36]}  e3 {[%clk 0:01:48]} 33. fxe3 {[%clk 0:00:30]}  dxe3 {[%clk 0:01:49]} 34. Re1 {[%clk 0:00:10]}  e2 {[%clk 0:01:45]} 35. Qf2 {[%clk 0:00:03]}  Qh5 {[%clk 0:01:42]} 36. Qxc5 {[%clk 0:00:02]}  Qxc5+ {[%clk 0:01:42]} 0-1


[Site "https://www.chess.com"]

[Event "Titled Tuesday Blitz November 01 Early 2022"]
[White "Salem, A.R. Saleh"]
[Black "Goroshkov, Maksym"]
[WhiteFideId "9301348"]
[BlackFideId "14142716"]
[WhiteElo "2628"]
[BlackElo "2257"]
[Result "1-0"]
[Round "05"]
[TimeControl "180+1"]
[Date "2022.11.02"]
[WhiteClock "0:00:54"]
[BlackClock "0:00:19"]

1. d4 {[%clk 0:03:00]}  Nf6 {[%clk 0:02:59]} 2. c4 {[%clk 0:03:01]}  d6 {[%clk 0:03:00]} 3. Nc3 {[%clk 0:03:01]}  g6 {[%clk 0:03:01]} 4. e4 {[%clk 0:03:01]}  Bg7 {[%clk 0:03:01]} 5. h3 {[%clk 0:03:01]}  O-O {[%clk 0:03:02]} 6. Be3 {[%clk 0:03:02]}  c6 {[%clk 0:03:02]} 7. g4 {[%clk 0:03:00]}  e5 {[%clk 0:03:01]} 8. d5 {[%clk 0:03:00]}  cxd5 {[%clk 0:03:01]} 9. cxd5 {[%clk 0:03:00]}  a6 {[%clk 0:02:52]} 10. Nge2 {[%clk 0:02:55]}  b5 {[%clk 0:02:51]} 11. Ng3 {[%clk 0:02:54]}  b4 {[%clk 0:02:50]} 12. Na4 {[%clk 0:02:53]}  Nbd7 {[%clk 0:02:49]} 13. Be2 {[%clk 0:02:48]}  Bb7 {[%clk 0:02:44]} 14. O-O {[%clk 0:02:38]}  Rc8 {[%clk 0:02:42]} 15. a3 {[%clk 0:02:36]}  Qa5 {[%clk 0:02:36]} 16. Bd2 {[%clk 0:02:31]}  Qd8 {[%clk 0:02:21]} 17. axb4 {[%clk 0:02:31]}  Nb6 {[%clk 0:02:19]} 18. Nxb6 {[%clk 0:02:28]}  Qxb6 {[%clk 0:02:20]} 19. Be3 {[%clk 0:02:29]}  Qxb4 {[%clk 0:02:19]} 20. Ra4 {[%clk 0:02:22]}  Qxb2 {[%clk 0:02:18]} 21. Qb1 {[%clk 0:02:22]}  Qxb1 {[%clk 0:02:03]} 22. Rxb1 {[%clk 0:02:23]}  Rc7 {[%clk 0:02:03]} 23. Bxa6 {[%clk 0:02:14]}  Ra8 {[%clk 0:02:01]} 24. Bb5 {[%clk 0:02:07]}  Rxa4 {[%clk 0:01:59]} 25. Bxa4 {[%clk 0:02:08]}  h5 {[%clk 0:01:58]} 26. Bb6 {[%clk 0:01:58]}  Rc8 {[%clk 0:01:55]} 27. g5 {[%clk 0:01:58]}  Nxe4 {[%clk 0:01:38]} 28. Nxe4 {[%clk 0:01:54]}  Bxd5 {[%clk 0:01:38]} 29. Nxd6 {[%clk 0:01:36]}  Rb8 {[%clk 0:01:39]} 30. Bc2 {[%clk 0:01:25]}  Ba2 {[%clk 0:01:17]} 31. Rb2 {[%clk 0:01:24]}  Bd5 {[%clk 0:01:13]} 32. Ne4 {[%clk 0:01:21]}  Bxe4 {[%clk 0:01:00]} 33. Bxe4 {[%clk 0:01:22]}  Bf8 {[%clk 0:01:01]} 34. Rb1 {[%clk 0:01:20]}  h4 {[%clk 0:00:56]} 35. Be3 {[%clk 0:01:19]}  Rxb1+ {[%clk 0:00:55]} 36. Bxb1 {[%clk 0:01:20]}  Be7 {[%clk 0:00:55]} 37. Kg2 {[%clk 0:01:19]}  Kg7 {[%clk 0:00:55]} 38. Kf3 {[%clk 0:01:19]}  f6 {[%clk 0:00:55]} 39. gxf6+ {[%clk 0:01:20]}  Bxf6 {[%clk 0:00:56]} 40. Kg4 {[%clk 0:01:20]}  Be7 {[%clk 0:00:51]} 41. Bg5 {[%clk 0:01:19]}  Bc5 {[%clk 0:00:51]} 42. Bxh4 {[%clk 0:01:19]}  Kh6 {[%clk 0:00:49]} 43. Bg3 {[%clk 0:01:19]}  Bb6 {[%clk 0:00:46]} 44. f3 {[%clk 0:01:16]}  Bd4 {[%clk 0:00:46]} 45. Be4 {[%clk 0:01:14]}  Bc3 {[%clk 0:00:45]} 46. Bf2 {[%clk 0:01:13]}  Bb2 {[%clk 0:00:44]} 47. Be3+ {[%clk 0:01:13]}  Kg7 {[%clk 0:00:44]} 48. Kg5 {[%clk 0:01:13]}  Ba3 {[%clk 0:00:42]} 49. Bxg6 {[%clk 0:01:13]}  Be7+ {[%clk 0:00:42]} 50. Kf5 {[%clk 0:01:14]}  Bf6 {[%clk 0:00:41]} 51. Bh5 {[%clk 0:01:14]}  Be7 {[%clk 0:00:31]} 52. Kxe5 {[%clk 0:01:14]}  Bf6+ {[%clk 0:00:31]} 53. Kf5 {[%clk 0:01:14]}  Bb2 {[%clk 0:00:32]} 54. Bg6 {[%clk 0:01:14]}  Ba1 {[%clk 0:00:32]} 55. h4 {[%clk 0:01:14]}  Bc3 {[%clk 0:00:32]} 56. h5 {[%clk 0:01:14]}  Bb2 {[%clk 0:00:31]} 57. h6+ {[%clk 0:01:14]}  Kg8 {[%clk 0:00:31]} 58. Bg5 {[%clk 0:01:15]}  Bh8 {[%clk 0:00:24]} 59. h7+ {[%clk 0:01:13]}  Kf8 {[%clk 0:00:22]} 60. Be3 {[%clk 0:01:06]}  Kg7 {[%clk 0:00:21]} 61. Bc5 {[%clk 0:01:03]}  Kh6 {[%clk 0:00:18]} 62. Bf8+ {[%clk 0:01:02]}  Bg7 {[%clk 0:00:19]} 63. h8=R# {[%clk 0:00:54]} 1-0


[Site "https://www.chess.com"]

[Event "Titled Tuesday Blitz November 01 Early 2022"]
[White "Salgado Lopez, Ivan"]
[Black "Andreev, Konstantin"]
[WhiteFideId "2257327"]
[BlackFideId "24239305"]
[WhiteElo "2594"]
[BlackElo "2106"]
[Result "0-1"]
[Round "05"]
[TimeControl "180+1"]
[Date "2022.11.02"]
[WhiteClock "0:00:13"]
[BlackClock "0:00:25"]

1. d4 {[%clk 0:03:00]}  Nf6 {[%clk 0:02:58]} 2. c4 {[%clk 0:03:01]}  e6 {[%clk 0:02:58]} 3. Bf4 {[%clk 0:03:01]}  d5 {[%clk 0:02:58]} 4. cxd5 {[%clk 0:03:01]}  exd5 {[%clk 0:02:59]} 5. e3 {[%clk 0:03:01]}  Bd6 {[%clk 0:02:54]} 6. Bxd6 {[%clk 0:03:01]}  Qxd6 {[%clk 0:02:55]} 7. Qc2 {[%clk 0:03:02]}  O-O {[%clk 0:02:54]} 8. Nc3 {[%clk 0:03:02]}  c6 {[%clk 0:02:53]} 9. Bd3 {[%clk 0:03:03]}  Re8 {[%clk 0:02:52]} 10. Nf3 {[%clk 0:03:03]}  Nbd7 {[%clk 0:02:52]} 11. O-O {[%clk 0:03:02]}  Nf8 {[%clk 0:02:51]} 12. Ne5 {[%clk 0:03:02]}  Ng6 {[%clk 0:02:49]} 13. f4 {[%clk 0:03:03]}  a6 {[%clk 0:02:40]} 14. Na4 {[%clk 0:02:59]}  Rb8 {[%clk 0:02:34]} 15. a3 {[%clk 0:02:57]}  Ng4 {[%clk 0:02:25]} 16. Rae1 {[%clk 0:02:51]}  Nf6 {[%clk 0:02:15]} 17. b4 {[%clk 0:02:50]}  Bd7 {[%clk 0:02:14]} 18. h3 {[%clk 0:02:49]}  Qc7 {[%clk 0:02:03]} 19. Nc5 {[%clk 0:02:46]}  Bc8 {[%clk 0:02:01]} 20. g4 {[%clk 0:02:44]}  b6 {[%clk 0:02:01]} 21. Nb3 {[%clk 0:02:41]}  Ne4 {[%clk 0:01:58]} 22. Bxe4 {[%clk 0:02:33]}  dxe4 {[%clk 0:01:59]} 23. Qxc6 {[%clk 0:02:32]}  Qe7 {[%clk 0:01:52]} 24. Qxe4 {[%clk 0:01:31]}  Bb7 {[%clk 0:01:51]} 25. Qc2 {[%clk 0:01:20]}  Rbc8 {[%clk 0:01:43]} 26. Qf2 {[%clk 0:01:19]}  Rc3 {[%clk 0:01:37]} 27. Nd2 {[%clk 0:01:18]}  Rc2 {[%clk 0:01:25]} 28. Rc1 {[%clk 0:01:15]}  Rec8 {[%clk 0:01:25]} 29. Rxc2 {[%clk 0:01:05]}  Rxc2 {[%clk 0:01:26]} 30. Kh2 {[%clk 0:00:55]}  Qc7 {[%clk 0:01:24]} 31. Re1 {[%clk 0:00:50]}  Nxe5 {[%clk 0:01:10]} 32. fxe5 {[%clk 0:00:49]}  Qc3 {[%clk 0:01:10]} 33. Re2 {[%clk 0:00:50]}  Qd3 {[%clk 0:01:01]} 34. Qe1 {[%clk 0:00:41]}  Qc3 {[%clk 0:00:44]} 35. Rf2 {[%clk 0:00:40]}  Rc1 {[%clk 0:00:43]} 36. Qe2 {[%clk 0:00:40]}  Rh1+ {[%clk 0:00:41]} 37. Kg3 {[%clk 0:00:40]}  Rg1+ {[%clk 0:00:40]} 38. Kf4 {[%clk 0:00:37]}  Qc6 {[%clk 0:00:34]} 39. e4 {[%clk 0:00:12]}  Qh6+ {[%clk 0:00:32]} 40. g5 {[%clk 0:00:12]}  Qh4+ {[%clk 0:00:30]} 41. Kf3 {[%clk 0:00:13]}  Qxh3+ {[%clk 0:00:28]} 42. Kf4 {[%clk 0:00:13]}  Qg3+ {[%clk 0:00:24]} 43. Kf5 {[%clk 0:00:13]}  Bc8+ {[%clk 0:00:25]} 44. e6 {[%clk 0:00:13]}  fxe6# {[%clk 0:00:25]} 0-1


[Site "https://www.chess.com"]

[Event "Titled Tuesday Blitz November 01 Early 2022"]
[White "Shandrygin, Nikita"]
[Black "Zemlyanskii, Ivan"]
[WhiteFideId "24198668"]
[BlackFideId "24249971"]
[WhiteElo "2323"]
[BlackElo "2107"]
[Result "0-1"]
[Round "05"]
[TimeControl "180+1"]
[Date "2022.11.02"]
[WhiteClock "0:00:12"]
[BlackClock "0:00:03"]

1. e4 {[%clk 0:03:00]}  c5 {[%clk 0:02:58]} 2. Nf3 {[%clk 0:03:00]}  d6 {[%clk 0:02:58]} 3. d4 {[%clk 0:03:01]}  Nf6 {[%clk 0:02:56]} 4. Nc3 {[%clk 0:03:01]}  cxd4 {[%clk 0:02:55]} 5. Nxd4 {[%clk 0:03:02]}  a6 {[%clk 0:02:55]} 6. f3 {[%clk 0:03:02]}  e5 {[%clk 0:02:55]} 7. Nb3 {[%clk 0:03:02]}  h5 {[%clk 0:02:56]} 8. Be3 {[%clk 0:03:02]}  Be6 {[%clk 0:02:55]} 9. Nd5 {[%clk 0:03:02]}  Bxd5 {[%clk 0:02:56]} 10. exd5 {[%clk 0:03:02]}  Nbd7 {[%clk 0:02:56]} 11. c4 {[%clk 0:03:00]}  g6 {[%clk 0:02:54]} 12. Qd2 {[%clk 0:03:00]}  b6 {[%clk 0:02:50]} 13. Be2 {[%clk 0:02:56]}  Bg7 {[%clk 0:02:50]} 14. O-O {[%clk 0:02:57]}  O-O {[%clk 0:02:51]} 15. Rac1 {[%clk 0:02:56]}  Re8 {[%clk 0:02:48]} 16. Na1 {[%clk 0:02:53]}  e4 {[%clk 0:02:25]} 17. f4 {[%clk 0:02:42]}  Ng4 {[%clk 0:02:25]} 18. Bxg4 {[%clk 0:02:42]}  hxg4 {[%clk 0:02:26]} 19. Nb3 {[%clk 0:01:43]}  Nc5 {[%clk 0:02:06]} 20. Nxc5 {[%clk 0:01:42]}  bxc5 {[%clk 0:02:07]} 21. Rb1 {[%clk 0:01:36]}  Qd7 {[%clk 0:02:01]} 22. b4 {[%clk 0:01:22]}  cxb4 {[%clk 0:02:00]} 23. Rxb4 {[%clk 0:01:23]}  a5 {[%clk 0:01:54]} 24. Rb5 {[%clk 0:01:20]}  Rec8 {[%clk 0:01:54]} 25. Rc1 {[%clk 0:01:18]}  Rxc4 {[%clk 0:01:52]} 26. Rxc4 {[%clk 0:01:11]}  Qxb5 {[%clk 0:01:51]} 27. Qc2 {[%clk 0:00:38]}  Qxd5 {[%clk 0:01:36]} 28. Rc8+ {[%clk 0:00:37]}  Rxc8 {[%clk 0:01:36]} 29. Qxc8+ {[%clk 0:00:38]}  Kh7 {[%clk 0:01:25]} 30. Qxg4 {[%clk 0:00:39]}  Qd3 {[%clk 0:01:16]} 31. Qh3+ {[%clk 0:00:30]}  Kg8 {[%clk 0:01:01]} 32. Qc8+ {[%clk 0:00:30]}  Bf8 {[%clk 0:01:01]} 33. Kf2 {[%clk 0:00:30]}  d5 {[%clk 0:00:52]} 34. f5 {[%clk 0:00:21]}  d4 {[%clk 0:00:08]} 35. Bh6 {[%clk 0:00:21]}  e3+ {[%clk 0:00:08]} 36. Kg3 {[%clk 0:00:17]}  e2+ {[%clk 0:00:07]} 37. Kg4 {[%clk 0:00:12]}  Qxf5+ {[%clk 0:00:03]} 0-1


[Site "https://www.chess.com"]

[Event "Titled Tuesday Blitz November 01 Early 2022"]
[White "Shankland, Sam"]
[Black "Azarov, Sergei"]
[WhiteFideId "2004887"]
[BlackFideId "13501470"]
[WhiteElo "2612"]
[BlackElo "2494"]
[Result "1-0"]
[Round "05"]
[TimeControl "180+1"]
[Date "2022.11.01"]
[WhiteClock "0:02:04"]
[BlackClock "0:00:38"]

1. d4 {[%clk 0:03:00]}  Nf6 {[%clk 0:02:59]} 2. c4 {[%clk 0:03:01]}  e6 {[%clk 0:02:58]} 3. Nc3 {[%clk 0:03:01]}  Bb4 {[%clk 0:02:58]} 4. Qc2 {[%clk 0:03:01]}  c5 {[%clk 0:02:58]} 5. dxc5 {[%clk 0:03:00]}  O-O {[%clk 0:02:57]} 6. Nf3 {[%clk 0:02:58]}  Na6 {[%clk 0:02:52]} 7. c6 {[%clk 0:02:57]}  bxc6 {[%clk 0:02:51]} 8. e3 {[%clk 0:02:57]}  d5 {[%clk 0:02:49]} 9. Bd2 {[%clk 0:02:56]}  Rb8 {[%clk 0:02:47]} 10. Be2 {[%clk 0:02:55]}  Bd6 {[%clk 0:02:41]} 11. a3 {[%clk 0:02:54]}  Nc7 {[%clk 0:02:18]} 12. b4 {[%clk 0:02:48]}  a5 {[%clk 0:02:08]} 13. c5 {[%clk 0:02:31]}  Be7 {[%clk 0:02:07]} 14. Rb1 {[%clk 0:02:31]}  Ba6 {[%clk 0:01:48]} 15. O-O {[%clk 0:02:29]}  axb4 {[%clk 0:01:46]} 16. axb4 {[%clk 0:02:28]}  Bxe2 {[%clk 0:01:42]} 17. Nxe2 {[%clk 0:02:29]}  Nb5 {[%clk 0:01:42]} 18. Ned4 {[%clk 0:02:27]}  Qc7 {[%clk 0:01:23]} 19. Ra1 {[%clk 0:02:26]}  Nd7 {[%clk 0:01:20]} 20. Ra6 {[%clk 0:02:24]}  Nxd4 {[%clk 0:01:06]} 21. Nxd4 {[%clk 0:02:12]}  Qb7 {[%clk 0:00:50]} 22. Rfa1 {[%clk 0:02:04]}  Ra8 {[%clk 0:00:46]} 23. Qa4 {[%clk 0:02:04]}  Rxa6 {[%clk 0:00:39]} 24. Qxa6 {[%clk 0:02:05]}  Qxa6 {[%clk 0:00:39]} 25. Rxa6 {[%clk 0:02:05]}  Nb8 {[%clk 0:00:40]} 26. Rb6 {[%clk 0:02:04]}  Bd8 {[%clk 0:00:38]} 27. Rxb8 {[%clk 0:02:04]} 1-0


[Site "https://www.chess.com"]

[Event "Titled Tuesday Blitz November 01 Early 2022"]
[White "Shuvalov, Evgenij"]
[Black "Biastoch, Bennet"]
[WhiteFideId "4187237"]
[BlackFideId "12939889"]
[WhiteElo "2049"]
[BlackElo "2221"]
[Result "1/2-1/2"]
[Round "05"]
[TimeControl "180+1"]
[Date "2022.11.02"]
[WhiteClock "0:00:07"]
[BlackClock "0:00:18"]

1. d4 {[%clk 0:03:00]}  d5 {[%clk 0:02:58]} 2. c4 {[%clk 0:03:00]}  e6 {[%clk 0:02:57]} 3. cxd5 {[%clk 0:03:00]}  exd5 {[%clk 0:02:57]} 4. Nc3 {[%clk 0:03:00]}  c6 {[%clk 0:02:57]} 5. Nf3 {[%clk 0:02:59]}  Bf5 {[%clk 0:02:54]} 6. Bg5 {[%clk 0:02:56]}  f6 {[%clk 0:02:49]} 7. Bf4 {[%clk 0:02:47]}  Bd6 {[%clk 0:02:48]} 8. Bxd6 {[%clk 0:02:42]}  Qxd6 {[%clk 0:02:49]} 9. Qb3 {[%clk 0:02:42]}  Nd7 {[%clk 0:02:37]} 10. e3 {[%clk 0:02:35]}  Nh6 {[%clk 0:02:28]} 11. Be2 {[%clk 0:02:34]}  O-O {[%clk 0:02:27]} 12. O-O {[%clk 0:02:34]}  a5 {[%clk 0:02:19]} 13. e4 {[%clk 0:02:28]}  Be6 {[%clk 0:02:15]} 14. exd5 {[%clk 0:02:27]}  cxd5 {[%clk 0:02:15]} 15. a3 {[%clk 0:02:15]}  Bf7 {[%clk 0:02:00]} 16. Rac1 {[%clk 0:02:09]}  Nf5 {[%clk 0:01:56]} 17. Nb5 {[%clk 0:02:08]}  Qf4 {[%clk 0:01:51]} 18. Rc7 {[%clk 0:01:56]}  Nb6 {[%clk 0:01:36]} 19. Rxb7 {[%clk 0:01:49]}  Nc4 {[%clk 0:01:36]} 20. Nc7 {[%clk 0:01:28]}  Rac8 {[%clk 0:01:30]} 21. Nb5 {[%clk 0:01:06]}  Rb8 {[%clk 0:01:22]} 22. Nc3 {[%clk 0:01:02]}  Rxb7 {[%clk 0:01:18]} 23. Qxb7 {[%clk 0:01:02]}  Nxd4 {[%clk 0:01:11]} 24. Nxd4 {[%clk 0:01:00]}  Qxd4 {[%clk 0:01:11]} 25. Rd1 {[%clk 0:00:59]}  Qe5 {[%clk 0:01:05]} 26. Bf3 {[%clk 0:00:53]}  Nxa3 {[%clk 0:00:59]} 27. Nxd5 {[%clk 0:00:51]}  Nc4 {[%clk 0:00:52]} 28. g3 {[%clk 0:00:45]}  Nxb2 {[%clk 0:00:45]} 29. Rb1 {[%clk 0:00:39]}  Nc4 {[%clk 0:00:45]} 30. Rd1 {[%clk 0:00:27]}  a4 {[%clk 0:00:42]} 31. Qa6 {[%clk 0:00:25]}  Nb2 {[%clk 0:00:40]} 32. Rb1 {[%clk 0:00:18]}  Bxd5 {[%clk 0:00:24]} 33. Bxd5+ {[%clk 0:00:18]}  Qxd5 {[%clk 0:00:25]} 34. Rxb2 {[%clk 0:00:18]}  Qd1+ {[%clk 0:00:25]} 35. Kg2 {[%clk 0:00:18]}  Qd5+ {[%clk 0:00:25]} 36. Kg1 {[%clk 0:00:17]}  Qd4 {[%clk 0:00:25]} 37. Ra2 {[%clk 0:00:15]}  h6 {[%clk 0:00:24]} 38. Qxa4 {[%clk 0:00:15]}  Qxa4 {[%clk 0:00:24]} 39. Rxa4 {[%clk 0:00:15]}  Kh7 {[%clk 0:00:25]} 40. h4 {[%clk 0:00:16]}  Rc8 {[%clk 0:00:25]} 41. Kg2 {[%clk 0:00:16]}  Kg6 {[%clk 0:00:26]} 42. Ra5 {[%clk 0:00:16]}  Kf7 {[%clk 0:00:25]} 43. h5 {[%clk 0:00:17]}  Rc7 {[%clk 0:00:25]} 44. g4 {[%clk 0:00:16]}  g6 {[%clk 0:00:24]} 45. hxg6+ {[%clk 0:00:16]}  Kxg6 {[%clk 0:00:25]} 46. Kg3 {[%clk 0:00:16]}  Rc3+ {[%clk 0:00:25]} 47. f3 {[%clk 0:00:16]}  Rc4 {[%clk 0:00:25]} 48. Rh5 {[%clk 0:00:15]}  Rb4 {[%clk 0:00:24]} 49. Rf5 {[%clk 0:00:16]}  Rc4 {[%clk 0:00:24]} 50. Rf4 {[%clk 0:00:15]}  Rc5 {[%clk 0:00:23]} 51. Rb4 {[%clk 0:00:14]}  Rd5 {[%clk 0:00:23]} 52. Rc4 {[%clk 0:00:14]}  Rb5 {[%clk 0:00:23]} 53. Kf4 {[%clk 0:00:14]}  Ra5 {[%clk 0:00:23]} 54. Rb4 {[%clk 0:00:14]}  Rc5 {[%clk 0:00:23]} 55. Re4 {[%clk 0:00:14]}  Rb5 {[%clk 0:00:23]} 56. Re8 {[%clk 0:00:14]}  Rb4+ {[%clk 0:00:23]} 57. Re4 {[%clk 0:00:14]}  Rb5 {[%clk 0:00:23]} 58. Kg3 {[%clk 0:00:13]}  Ra5 {[%clk 0:00:23]} 59. Kh4 {[%clk 0:00:13]}  Ra1 {[%clk 0:00:23]} 60. f4 {[%clk 0:00:12]}  Rg1 {[%clk 0:00:20]} 61. f5+ {[%clk 0:00:12]}  Kf7 {[%clk 0:00:20]} 62. Rc4 {[%clk 0:00:11]}  Ke7 {[%clk 0:00:20]} 63. Kh5 {[%clk 0:00:10]}  Kf7 {[%clk 0:00:18]} 64. Rc7+ {[%clk 0:00:09]}  Ke8 {[%clk 0:00:19]} 65. Rg7 {[%clk 0:00:08]}  Kf8 {[%clk 0:00:19]} 66. Kxh6 {[%clk 0:00:08]}  Rg2 {[%clk 0:00:17]} 67. Kh7 {[%clk 0:00:05]}  Rg1 {[%clk 0:00:16]} 68. Rg8+ {[%clk 0:00:04]}  Kf7 {[%clk 0:00:16]} 69. Rg7+ {[%clk 0:00:04]}  Kf8 {[%clk 0:00:16]} 70. Kh6 {[%clk 0:00:04]}  Rg2 {[%clk 0:00:16]} 71. g5 {[%clk 0:00:04]}  Rxg5 {[%clk 0:00:13]} 72. Rxg5 {[%clk 0:00:03]}  fxg5 {[%clk 0:00:14]} 73. Kxg5 {[%clk 0:00:04]}  Kg7 {[%clk 0:00:14]} 74. Kg4 {[%clk 0:00:03]}  Kf6 {[%clk 0:00:14]} 75. Kf4 {[%clk 0:00:04]}  Kf7 {[%clk 0:00:15]} 76. Kg5 {[%clk 0:00:04]}  Kg7 {[%clk 0:00:16]} 77. f6+ {[%clk 0:00:04]}  Kf7 {[%clk 0:00:16]} 78. Kf5 {[%clk 0:00:05]}  Kf8 {[%clk 0:00:17]} 79. Kg6 {[%clk 0:00:05]}  Kg8 {[%clk 0:00:17]} 80. f7+ {[%clk 0:00:06]}  Kf8 {[%clk 0:00:18]} 81. Kf6 {[%clk 0:00:07]} 1/2-1/2


[Site "https://www.chess.com"]